Workbook

Sheet Sheet1
A1: 附件2：
A2: 合肥市公安局2024年公开招聘警务辅助人员 笔试与体能测试合成成绩表（一）
A3: 序号 | B3: 主管单位 | C3: 岗位代码 | D3: 准考证号 | E3: 笔试成绩 | F3: 体测成绩 | G3: 合成成绩（笔试成绩*0.3+体测成绩*0.3）
A4: 1 | B4: 合肥市公安局 | C4: 241001 | D4: 9990100605 | E4: 49.04 | F4: 77.5 | G4: =ROUND(E4*0.3+F4*0.3,2) -> 37.96
A5: 2 | B5: 合肥市公安局 | C5: 241001 | D5: 9990100729 | E5: 51.88 | F5: 20 | G5: 21.56
A6: 3 | B6: 合肥市公安局 | C6: 241001 | D6: 9990100805 | E6: 45.78 | F6: 82.5 | G6: 38.48
A7: 4 | B7: 合肥市公安局 | C7: 241001 | D7: 9990100904 | E7: 45.63 | F7: 65 | G7: 33.19
A8: 5 | B8: 合肥市公安局 | C8: 241001 | D8: 9990101209 | E8: 49.25 | F8: 67.5 | G8: 35.03
A9: 6 | B9: 合肥市公安局 | C9: 241001 | D9: 9990101524 | E9: 49.02 | F9: 45 | G9: 28.21
A10: 7 | B10: 合肥市公安局 | C10: 241001 | D10: 9990104025 | E10: 55.97 | F10: 62.5 | G10: 35.54
A11: 8 | B11: 合肥市公安局 | C11: 241001 | D11: 9990104119 | E11: 45.78 | F11: 52.5 | G11: 29.48
A12: 9 | B12: 合肥市公安局 | C12: 241001 | D12: 9990105920 | E12: 43.23 | F12: 42.5 | G12: 25.72
A13: 10 | B13: 合肥市公安局 | C13: 241001 | D13: 9990106301 | E13: 50.57 | F13: 47.5 | G13: 29.42
A14: 11 | B14: 合肥市公安局 | C14: 241001 | D14: 9990106613 | E14: 46.02 | F14: 50 | G14: 28.81
A15: 12 | B15: 合肥市公安局 | C15: 241001 | D15: 9990106812 | E15: 43.69 | F15: 65 | G15: 32.61
A16: 13 | B16: 合肥市公安局 | C16: 241001 | D16: 9990107317 | E16: 47.48 | F16: 50 | G16: 29.24
A17: 14 | B17: 合肥市公安局 | C17: 241001 | D17: 9990107329 | E17: 48.71 | F17: 52.5 | G17: 30.36
A18: 15 | B18: 合肥市公安局 | C18: 241001 | D18: 9990107825 | E18: 45.72 | F18: 65 | G18: 33.22
A19: 16 | B19: 合肥市公安局 | C19: 241001 | D19: 9990108224 | E19: 47.94 | F19: 77.5 | G19: 37.63
A20: 17 | B20: 合肥市公安局 | C20: 241001 | D20: 9990108724 | E20: 43 | F20: 37.5 | G20: 24.15
A21: 18 | B21: 合肥市公安局 | C21: 241001 | D21: 9990110025 | E21: 48.87 | F21: 60 | G21: 32.66
A22: 19 | B22: 合肥市公安局 | C22: 241001 | D22: 9990110106 | E22: 48.8 | F22: 80 | G22: 38.64
A23: 20 | B23: 合肥市公安局 | C23: 241001 | D23: 9990110107 | E23: 48.8 | F23: 72.5 | G23: 36.39
A24: 21 | B24: 合肥市公安局 | C24: 241001 | D24: 9990110314 | E24: 43.93 | F24: 45 | G24: 26.68
A25: 22 | B25: 合肥市公安局 | C25: 241001 | D25: 9990111506 | E25: 62.16 | F25: 70 | G25: 39.65
A26: 23 | B26: 合肥市公安局 | C26: 241001 | D26: 9990201027 | E26: 44.78 | F26: 37.5 | G26: 24.68
A27: 24 | B27: 合肥市公安局 | C27: 241001 | D27: 9990201123 | E27: 46.33 | F27: 72.5 | G27: 35.65
A28: 25 | B28: 合肥市公安局 | C28: 241001 | D28: 9990201505 | E28: 64.01 | F28: 82.5 | G28: 43.95
A29: 26 | B29: 合肥市公安局 | C29: 241001 | D29: 9990201924 | E29: 51.11 | F29: 85 | G29: 40.83
A30: 27 | B30: 合肥市公安局 | C30: 241001 | D30: 9990202928 | E30: 48.64 | F30: 62.5 | G30: 33.34
A31: 28 | B31: 合肥市公安局 | C31: 241001 | D31: 9990203416 | E31: 45.55 | F31: 40 | G31: 25.67
A32: 29 | B32: 合肥市公安局 | C32: 241001 | D32: 9990206206 | E32: 49.33 | F32: 62.5 | G32: 33.55
A33: 30 | B33: 合肥市公安局 | C33: 241001 | D33: 9990206228 | E33: 49.72 | F33: 62.5 | G33: 33.67
A34: 31 | B34: 合肥市公安局 | C34: 241001 | D34: 9990206716 | E34: 44.01 | F34: 37.5 | G34: 24.45
A35: 32 | B35: 合肥市公安局 | C35: 241001 | D35: 9990207107 | E35: 44.77 | F35: 42.5 | G35: 26.18
A36: 33 | B36: 合肥市公安局 | C36: 241001 | D36: 9990207807 | E36: 45.7 | F36: 27.5 | G36: 21.96
A37: 34 | B37: 合肥市公安局 | C37: 241001 | D37: 9990208015 | E37: 44.23 | F37: 67.5 | G37: 33.52
A38: 35 | B38: 合肥市公安局 | C38: 241001 | D38: 9990208425 | E38: 51.18 | F38: 30 | G38: 24.35
A39: 36 | B39: 合肥市公安局 | C39: 241001 | D39: 9990208913 | E39: 48.41 | F39: 87.5 | G39: 40.77
A40: 37 | B40: 合肥市公安局 | C40: 241001 | D40: 9990210215 | E40: 63.24 | F40: 97.5 | G40: 48.22
A41: 38 | B41: 合肥市公安局 | C41: 241001 | D41: 9990210410 | E41: 46.48 | F41: 87.5 | G41: 40.19
A42: 39 | B42: 合肥市公安局 | C42: 241001 | D42: 9990211123 | E42: 51.81 | F42: 72.5 | G42: 37.29
A43: 40 | B43: 合肥市公安局 | C43: 241001 | D43: 9990211205 | E43: 51.42 | F43: 52.5 | G43: 31.18
A44: 41 | B44: 合肥市公安局 | C44: 241001 | D44: 9990211304 | E44: 51.42 | F44: 70 | G44: 36.43
A45: 42 | B45: 合肥市公安局 | C45: 241001 | D45: 9990211314 | E45: 47.94 | F45: 60 | G45: 32.38
A46: 43 | B46: 合肥市公安局 | C46: 241002 | D46: 9990100505 | E46: 60.15 | F46: 70 | G46: 39.05
A47: 44 | B47: 合肥市公安局 | C47: 241002 | D47: 9990101320 | E47: 52.2 | F47: 65 | G47: 35.16
A48: 45 | B48: 合肥市公安局 | C48: 241002 | D48: 9990101809 | E48: 50.42 | F48: 70 | G48: 36.13
A49: 46 | B49: 合肥市公安局 | C49: 241002 | D49: 9990102102 | E49: 49.71 | F49: 80 | G49: 38.91
A50: 47 | B50: 合肥市公安局 | C50: 241002 | D50: 9990102113 | E50: 54.12 | F50: 67.5 | G50: 36.49
A51: 48 | B51: 合肥市公安局 | C51: 241002 | D51: 9990102816 | E51: 48.8 | F51: 82.5 | G51: 39.39
A52: 49 | B52: 合肥市公安局 | C52: 241002 | D52: 9990103022 | E52: 55.05 | F52: 55 | G52: 33.02
A53: 50 | B53: 合肥市公安局 | C53: 241002 | D53: 9990105013 | E53: 54.35 | F53: 87.5 | G53: 42.56
A54: 51 | B54: 合肥市公安局 | C54: 241002 | D54: 9990105103 | E54: 59.14 | F54: 82.5 | G54: 42.49
A55: 52 | B55: 合肥市公安局 | C55: 241002 | D55: 9990106130 | E55: 53.89 | F55: 17.5 | G55: 21.42
A56: 53 | B56: 合肥市公安局 | C56: 241002 | D56: 9990106210 | E56: 52.19 | F56: 82.5 | G56: 40.41
A57: 54 | B57: 合肥市公安局 | C57: 241002 | D57: 9990106429 | E57: 50.8 | F57: 52.5 | G57: 30.99
A58: 55 | B58: 合肥市公安局 | C58: 241002 | D58: 9990106602 | E58: 51.11 | F58: 65 | G58: 34.83
A59: 56 | B59: 合肥市公安局 | C59: 241002 | D59: 9990106729 | E59: 57.13 | F59: 50 | G59: 32.14
A60: 57 | B60: 合肥市公安局 | C60: 241002 | D60: 9990107816 | E60: 53.27 | F60: 70 | G60: 36.98
A61: 58 | B61: 合肥市公安局 | C61: 241002 | D61: 9990108015 | E61: 57.44 | F61: 57.5 | G61: 34.48
A62: 59 | B62: 合肥市公安局 | C62: 241002 | D62: 9990108305 | E62: 51.11 | F62: 72.5 | G62: 37.08
A63: 60 | B63: 合肥市公安局 | C63: 241002 | D63: 9990108827 | E63: 51.49 | F63: 62.5 | G63: 34.2
A64: 61 | B64: 合肥市公安局 | C64: 241002 | D64: 9990109129 | E64: 50.03 | F64: 67.5 | G64: 35.26
A65: 62 | B65: 合肥市公安局 | C65: 241002 | D65: 9990110822 | E65: 52.97 | F65: 77.5 | G65: 39.14
A66: 63 | B66: 合肥市公安局 | C66: 241002 | D66: 9990110912 | E66: 54.98 | F66: 37.5 | G66: 27.74
A67: 64 | B67: 合肥市公安局 | C67: 241002 | D67: 9990111006 | E67: 51.35 | F67: 47.5 | G67: 29.66
A68: 65 | B68: 合肥市公安局 | C68: 241002 | D68: 9990111323 | E68: 58.92 | F68: 75 | G68: =ROUND(E68*0.3+F68*0.3,2) -> 40.18
A69: 66 | B69: 合肥市公安局 | C69: 241002 | D69: 9990111329 | E69: 50.8 | F69: 40 | G69: 27.24
A70: 67 | B70: 合肥市公安局 | C70: 241002 | D70: 9990200322 | E70: 50.8 | F70: 100 | G70: 45.24
A71: 68 | B71: 合肥市公安局 | C71: 241002 | D71: 9990200423 | E71: 61.31 | F71: 45 | G71: 31.89
A72: 69 | B72: 合肥市公安局 | C72: 241002 | D72: 9990201124 | E72: 55.99 | F72: 75 | G72: 39.3
A73: 70 | B73: 合肥市公安局 | C73: 241002 | D73: 9990202519 | E73: 57.07 | F73: 45 | G73: 30.62
A74: 71 | B74: 合肥市公安局 | C74: 241002 | D74: 9990203201 | E74: 51.8 | F74: 100 | G74: 45.54
A75: 72 | B75: 合肥市公安局 | C75: 241002 | D75: 9990203228 | E75: 50.11 | F75: 87.5 | G75: 41.28
A76: 73 | B76: 合肥市公安局 | C76: 241002 | D76: 9990203514 | E76: 50.58 | F76: 57.5 | G76: 32.42
A77: 74 | B77: 合肥市公安局 | C77: 241002 | D77: 9990204405 | E77: 48.8 | F77: 40 | G77: 26.64
A78: 75 | B78: 合肥市公安局 | C78: 241002 | D78: 9990205511 | E78: 49.88 | F78: 75 | G78: 37.46
A79: 76 | B79: 合肥市公安局 | C79: 241002 | D79: 9990205521 | E79: 50.88 | F79: 72.5 | G79: 37.01
A80: 77 | B80: 合肥市公安局 | C80: 241002 | D80: 9990206330 | E80: 61.77 | F80: 82.5 | G80: 43.28
A81: 78 | B81: 合肥市公安局 | C81: 241002 | D81: 9990206625 | E81: 53.5 | F81: 97.5 | G81: 45.3
A82: 79 | B82: 合肥市公安局 | C82: 241002 | D82: 9990206817 | E82: 56.28 | F82: 57.5 | G82: 34.13
A83: 80 | B83: 合肥市公安局 | C83: 241002 | D83: 9990207003 | E83: 57.22 | F83: 87.5 | G83: 43.42
A84: 81 | B84: 合肥市公安局 | C84: 241002 | D84: 9990207022 | E84: 48.56 | F84: 42.5 | G84: 27.32
A85: 82 | B85: 合肥市公安局 | C85: 241002 | D85: 9990207321 | E85: 55.9 | F85: 62.5 | G85: 35.52
A86: 83 | B86: 合肥市公安局 | C86: 241002 | D86: 9990207426 | E86: 52.88 | F86: 97.5 | G86: 45.11
A87: 84 | B87: 合肥市公安局 | C87: 241002 | D87: 9990207810 | E87: 50.96 | F87: 72.5 | G87: 37.04
A88: 85 | B88: 合肥市公安局 | C88: 241002 | D88: 9990207830 | E88: 54.9 | F88: 60 | G88: 34.47
A89: 86 | B89: 合肥市公安局 | C89: 241002 | D89: 9990209109 | E89: 78.06 | F89: 72.5 | G89: 45.17
A90: 87 | B90: 合肥市公安局 | C90: 241002 | D90: 9990209425 | E90: 64.71 | F90: 60 | G90: 37.41
A91: 88 | B91: 合肥市公安局 | C91: 241002 | D91: 9990209716 | E91: 62.39 | F91: 35 | G91: 29.22
A92: 89 | B92: 合肥市公安局 | C92: 241002 | D92: 9990210411 | E92: 60.62 | F92: 40 | G92: 30.19
A93: 90 | B93: 合肥市公安局 | C93: 241002 | D93: 9990210920 | E93: 48.49 | F93: 87.5 | G93: 40.8
A94: 91 | B94: 合肥市公安局 | C94: 241003 | D94: 9990100306 | E94: 54.35 | F94: 77.5 | G94: 39.56
A95: 92 | B95: 合肥市公安局 | C95: 241003 | D95: 9990101217 | E95: 48.09 | F95: 40 | G95: 26.43
A96: 93 | B96: 合肥市公安局 | C96: 241003 | D96: 9990103327 | E96: 53.36 | F96: 82.5 | G96: 40.76
A97: 94 | B97: 合肥市公安局 | C97: 241003 | D97: 9990103502 | E97: 45.77 | F97: 72.5 | G97: 35.48
A98: 95 | B98: 合肥市公安局 | C98: 241003 | D98: 9990104208 | E98: 55.59 | F98: 75 | G98: 39.18
A99: 96 | B99: 合肥市公安局 | C99: 241003 | D99: 9990104322 | E99: 60.69 | F99: 40 | G99: 30.21
A100: 97 | B100: 合肥市公安局 | C100: 241003 | D100: 9990104809 | E100: 41.45 | F100: 77.5 | G100: 35.69
A101: 98 | B101: 合肥市公安局 | C101: 241003 | D101: 9990105112 | E101: 44.93 | F101: 45 | G101: 26.98
A102: 99 | B102: 合肥市公安局 | C102: 241003 | D102: 9990105530 | E102: 50.95 | F102: 32.5 | G102: 25.04
A103: 100 | B103: 合肥市公安局 | C103: 241003 | D103: 9990105823 | E103: 41.14 | F103: 30 | G103: 21.34
A104: 101 | B104: 合肥市公安局 | C104: 241003 | D104: 9990106424 | E104: 41.84 | F104: 50 | G104: 27.55
A105: 102 | B105: 合肥市公安局 | C105: 241003 | D105: 9990108510 | E105: 56.28 | F105: 40 | G105: 28.88
A106: 103 | B106: 合肥市公安局 | C106: 241003 | D106: 9990109102 | E106: 47.56 | F106: 35 | G106: 24.77
A107: 104 | B107: 合肥市公安局 | C107: 241003 | D107: 9990110311 | E107: 46.02 | F107: 75 | G107: 36.31
A108: 105 | B108: 合肥市公安局 | C108: 241003 | D108: 9990110622 | E108: 47.1 | F108: 62.5 | G108: 32.88
A109: 106 | B109: 合肥市公安局 | C109: 241003 | D109: 9990110828 | E109: 44.07 | F109: 70 | G109: 34.22
A110: 107 | B110: 合肥市公安局 | C110: 241003 | D110: 9990111019 | E110: 45.7 | F110: 70 | G110: 34.71
A111: 108 | B111: 合肥市公安局 | C111: 241003 | D111: 9990200812 | E111: 52.19 | F111: 47.5 | G111: 29.91
A112: 109 | B112: 合肥市公安局 | C112: 241003 | D112: 9990200927 | E112: 44.94 | F112: 87.5 | G112: 39.73
A113: 110 | B113: 合肥市公安局 | C113: 241003 | D113: 9990201910 | E113: 43.62 | F113: 42.5 | G113: 25.84
A114: 111 | B114: 合肥市公安局 | C114: 241003 | D114: 9990202211 | E114: 50.58 | F114: 35 | G114: 25.67
A115: 112 | B115: 合肥市公安局 | C115: 241003 | D115: 9990203026 | E115: 48.72 | F115: 45 | G115: 28.12
A116: 113 | B116: 合肥市公安局 | C116: 241003 | D116: 9990203129 | E116: 48.64 | F116: 92.5 | G116: 42.34
A117: 114 | B117: 合肥市公安局 | C117: 241003 | D117: 9990203130 | E117: 46.4 | F117: 37.5 | G117: 25.17
A118: 115 | B118: 合肥市公安局 | C118: 241003 | D118: 9990203929 | E118: 47.86 | F118: 67.5 | G118: 34.61
A119: 116 | B119: 合肥市公安局 | C119: 241003 | D119: 9990204020 | E119: 41.22 | F119: 50 | G119: 27.37
A120: 117 | B120: 合肥市公安局 | C120: 241003 | D120: 9990204412 | E120: 49.96 | F120: 70 | G120: 35.99
A121: 118 | B121: 合肥市公安局 | C121: 241003 | D121: 9990204515 | E121: 52.73 | F121: 42.5 | G121: 28.57
A122: 119 | B122: 合肥市公安局 | C122: 241003 | D122: 9990204805 | E122: 50.27 | F122: 60 | G122: 33.08
A123: 120 | B123: 合肥市公安局 | C123: 241003 | D123: 9990205517 | E123: 52.81 | F123: 80 | G123: 39.84
A124: 121 | B124: 合肥市公安局 | C124: 241003 | D124: 9990205718 | E124: 46.63 | F124: 35 | G124: 24.49
A125: 122 | B125: 合肥市公安局 | C125: 241003 | D125: 9990206207 | E125: 52.89 | F125: 87.5 | G125: 42.12
A126: 123 | B126: 合肥市公安局 | C126: 241003 | D126: 9990206713 | E126: 53.9 | F126: 77.5 | G126: 39.42
A127: 124 | B127: 合肥市公安局 | C127: 241003 | D127: 9990207104 | E127: 44.71 | F127: 30 | G127: 22.41
A128: 125 | B128: 合肥市公安局 | C128: 241003 | D128: 9990207425 | E128: 54.59 | F128: 57.5 | G128: 33.63
A129: 126 | B129: 合肥市公安局 | C129: 241003 | D129: 9990207429 | E129: 46.63 | F129: 82.5 | G129: 38.74
A130: 127 | B130: 合肥市公安局 | C130: 241003 | D130: 9990207509 | E130: 52.81 | F130: 45 | G130: 29.34
A131: 128 | B131: 合肥市公安局 | C131: 241003 | D131: 9990207703 | E131: 46.32 | F131: 92.5 | G131: 41.65
A132: 129 | B132: 合肥市公安局 | C132: 241003 | D132: 9990208712 | E132: 55.66 | F132: 87.5 | G132: =ROUND(E132*0.3+F132*0.3,2) -> 42.95
A133: 130 | B133: 合肥市公安局 | C133: 241003 | D133: 9990208801 | E133: 51.19 | F133: 60 | G133: 33.36
A134: 131 | B134: 合肥市公安局 | C134: 241003 | D134: 9990208930 | E134: 44.54 | F134: 72.5 | G134: 35.11
A135: 132 | B135: 合肥市公安局 | C135: 241003 | D135: 9990209113 | E135: 60.61 | F135: 67.5 | G135: 38.43
A136: 133 | B136: 合肥市公安局 | C136: 241003 | D136: 9990210006 | E136: 52.12 | F136: 82.5 | G136: 40.39
A137: 134 | B137: 合肥市公安局 | C137: 241003 | D137: 9990210128 | E137: 48.95 | F137: 65 | G137: 34.19
A138: 135 | B138: 合肥市公安局 | C138: 241003 | D138: 9990210417 | E138: 49.94 | F138: 82.5 | G138: 39.73
A139: 136 | B139: 合肥市公安局 | C139: 241003 | D139: 9990210511 | E139: 46.71 | F139: 40 | G139: 26.01
A140: 137 | B140: 合肥市公安局 | C140: 241003 | D140: 9990211013 | E140: 44.07 | F140: 42.5 | G140: 25.97
A141: 138 | B141: 合肥市公安局 | C141: 241003 | D141: 9990211308 | E141: 47.19 | F141: 80 | G141: 38.16
A142: 139 | B142: 合肥市公安局 | C142: 241004 | D142: 9990100502 | E142: 47.03 | F142: 52.5 | G142: 29.86
A143: 140 | B143: 合肥市公安局 | C143: 241004 | D143: 9990101112 | E143: 50.66 | F143: 47.5 | G143: 29.45
A144: 141 | B144: 合肥市公安局 | C144: 241004 | D144: 9990101404 | E144: 42.38 | F144: 35 | G144: 23.21
A145: 142 | B145: 合肥市公安局 | C145: 241004 | D145: 9990101927 | E145: 47.87 | F145: 47.5 | G145: 28.61
A146: 143 | B146: 合肥市公安局 | C146: 241004 | D146: 9990102229 | E146: 64 | F146: 67.5 | G146: 39.45
A147: 144 | B147: 合肥市公安局 | C147: 241004 | D147: 9990104114 | E147: 48.79 | F147: 65 | G147: 34.14
A148: 145 | B148: 合肥市公安局 | C148: 241004 | D148: 9990104619 | E148: 55.44 | F148: 57.5 | G148: 33.88
A149: 146 | B149: 合肥市公安局 | C149: 241004 | D149: 9990104723 | E149: 47.48 | F149: 42.5 | G149: 26.99
A150: 147 | B150: 合肥市公安局 | C150: 241004 | D150: 9990104901 | E150: 47.64 | F150: 55 | G150: 30.79
A151: 148 | B151: 合肥市公安局 | C151: 241004 | D151: 9990105127 | E151: 61.31 | F151: 90 | G151: 45.39
A152: 149 | B152: 合肥市公安局 | C152: 241004 | D152: 9990105621 | E152: 43.23 | F152: 82.5 | G152: 37.72
A153: 150 | B153: 合肥市公安局 | C153: 241004 | D153: 9990105806 | E153: 54.13 | F153: 67.5 | G153: 36.49
A154: 151 | B154: 合肥市公安局 | C154: 241004 | D154: 9990106522 | E154: 50.96 | F154: 80 | G154: 39.29
A155: 152 | B155: 合肥市公安局 | C155: 241004 | D155: 9990106615 | E155: 55.36 | F155: 40 | G155: 28.61
A156: 153 | B156: 合肥市公安局 | C156: 241004 | D156: 9990106904 | E156: 46.32 | F156: 55 | G156: 30.4
A157: 154 | B157: 合肥市公安局 | C157: 241004 | D157: 9990107030 | E157: 43.07 | F157: 67.5 | G157: 33.17
A158: 155 | B158: 合肥市公安局 | C158: 241004 | D158: 9990107310 | E158: 50.89 | F158: 90 | G158: 42.27
A159: 156 | B159: 合肥市公安局 | C159: 241004 | D159: 9990108122 | E159: 59.99 | F159: 100 | G159: 48
A160: 157 | B160: 合肥市公安局 | C160: 241004 | D160: 9990108518 | E160: 42.84 | F160: 65 | G160: 32.35
A161: 158 | B161: 合肥市公安局 | C161: 241004 | D161: 9990108902 | E161: 49.63 | F161: 90 | G161: 41.89
A162: 159 | B162: 合肥市公安局 | C162: 241004 | D162: 9990109926 | E162: 50.19 | F162: 67.5 | G162: 35.31
A163: 160 | B163: 合肥市公安局 | C163: 241004 | D163: 9990110121 | E163: 46.56 | F163: 37.5 | G163: 25.22
A164: 161 | B164: 合肥市公安局 | C164: 241004 | D164: 9990110318 | E164: 59.77 | F164: 85 | G164: 43.43
A165: 162 | B165: 合肥市公安局 | C165: 241004 | D165: 9990111028 | E165: 57.37 | F165: 47.5 | G165: 31.46
A166: 163 | B166: 合肥市公安局 | C166: 241004 | D166: 9990201515 | E166: 50.18 | F166: 40 | G166: 27.05
A167: 164 | B167: 合肥市公安局 | C167: 241004 | D167: 9990201829 | E167: 51.88 | F167: 30 | G167: 24.56
A168: 165 | B168: 合肥市公安局 | C168: 241004 | D168: 9990202130 | E168: 48.95 | F168: 85 | G168: 40.19
A169: 166 | B169: 合肥市公安局 | C169: 241004 | D169: 9990202318 | E169: 47.94 | F169: 82.5 | G169: 39.13
A170: 167 | B170: 合肥市公安局 | C170: 241004 | D170: 9990203110 | E170: 55.98 | F170: 65 | G170: 36.29
A171: 168 | B171: 合肥市公安局 | C171: 241004 | D171: 9990204017 | E171: 60 | F171: 70 | G171: 39
A172: 169 | B172: 合肥市公安局 | C172: 241004 | D172: 9990204025 | E172: 52.6 | F172: 100 | G172: 45.78
A173: 170 | B173: 合肥市公安局 | C173: 241004 | D173: 9990207207 | E173: 52.66 | F173: 50 | G173: 30.8
A174: 171 | B174: 合肥市公安局 | C174: 241004 | D174: 9990207927 | E174: 43.86 | F174: 95 | G174: 41.66
A175: 172 | B175: 合肥市公安局 | C175: 241004 | D175: 9990209429 | E175: 46.24 | F175: 90 | G175: 40.87
A176: 173 | B176: 合肥市公安局 | C176: 241004 | D176: 9990209629 | E176: 55.74 | F176: 75 | G176: 39.22
A177: 174 | B177: 合肥市公安局 | C177: 241004 | D177: 9990209808 | E177: 58.52 | F177: 100 | G177: 47.56
A178: 175 | B178: 合肥市公安局 | C178: 241004 | D178: 9990210005 | E178: 48.41 | F178: 97.5 | G178: 43.77
A179: 176 | B179: 合肥市公安局 | C179: 241004 | D179: 9990210013 | E179: 60.93 | F179: 60 | G179: 36.28
A180: 177 | B180: 合肥市公安局 | C180: 241004 | D180: 9990210125 | E180: 48.1 | F180: 37.5 | G180: 25.68
A181: 178 | B181: 合肥市公安局 | C181: 241004 | D181: 9990210613 | E181: 56.28 | F181: 72.5 | G181: 38.63
A182: 179 | B182: 合肥市公安局 | C182: 241004 | D182: 9990211025 | E182: 53.58 | F182: 80 | G182: 40.07
A183: 180 | B183: 合肥市公安局 | C183: 241004 | D183: 9990211318 | E183: 42.69 | F183: 62.5 | G183: 31.56
A184: 181 | B184: 合肥市公安局 | C184: 241005 | D184: 9990100105 | E184: 59.37 | F184: 60 | G184: 35.81
A185: 182 | B185: 合肥市公安局 | C185: 241005 | D185: 9990100319 | E185: 67.8 | F185: 50 | G185: 35.34
A186: 183 | B186: 合肥市公安局 | C186: 241005 | D186: 9990100424 | E186: 65.55 | F186: 57.5 | G186: 36.92
A187: 184 | B187: 合肥市公安局 | C187: 241005 | D187: 9990100506 | E187: 60.22 | F187: 97.5 | G187: 47.32
A188: 185 | B188: 合肥市公安局 | C188: 241005 | D188: 9990100525 | E188: 62.85 | F188: 90 | G188: 45.86
A189: 186 | B189: 合肥市公安局 | C189: 241005 | D189: 9990100707 | E189: 74.67 | F189: 72.5 | G189: 44.15
A190: 187 | B190: 合肥市公安局 | C190: 241005 | D190: 9990101104 | E190: 56.83 | F190: 60 | G190: 35.05
A191: 188 | B191: 合肥市公安局 | C191: 241005 | D191: 9990101410 | E191: 63.63 | F191: 57.5 | G191: 36.34
A192: 189 | B192: 合肥市公安局 | C192: 241005 | D192: 9990101420 | E192: 63.85 | F192: 92.5 | G192: 46.91
A193: 190 | B193: 合肥市公安局 | C193: 241005 | D193: 9990101726 | E193: 58.68 | F193: 72.5 | G193: 39.35
A194: 191 | B194: 合肥市公安局 | C194: 241005 | D194: 9990101803 | E194: 57.28 | F194: 75 | G194: 39.68
A195: 192 | B195: 合肥市公安局 | C195: 241005 | D195: 9990103112 | E195: 57.37 | F195: 62.5 | G195: 35.96
A196: 193 | B196: 合肥市公安局 | C196: 241005 | D196: 9990103719 | E196: 59.77 | F196: 65 | G196: =ROUND(E196*0.3+F196*0.3,2) -> 37.43
A197: 194 | B197: 合肥市公安局 | C197: 241005 | D197: 9990104001 | E197: 66.63 | F197: 72.5 | G197: 41.74
A198: 195 | B198: 合肥市公安局 | C198: 241005 | D198: 9990104610 | E198: 57.44 | F198: 95 | G198: 45.73
A199: 196 | B199: 合肥市公安局 | C199: 241005 | D199: 9990104913 | E199: 56.75 | F199: 52.5 | G199: 32.78
A200: 197 | B200: 合肥市公安局 | C200: 241005 | D200: 9990105029 | E200: 59.76 | F200: 57.5 | G200: 35.18
... 851 more rows
